bitfinex/quotes_SOLUSD_20220306
["timestamp","ask_amount","ask_price","bid_price","bid_amount"]
[1646603986179,12.21222991,85.776,85.713,11.31459195]
[1646603986380,6.38122991,85.775,85.713,11.31459195]
[1646603986581,5.831,85.774,85.713,11.31459195]
[1646603986782,5.831,85.774,85.72,17.5018]
[1646603986986,6.38122991,85.773,85.72,17.5018]
[1646603987184,5.831,85.772,85.721,10.81459195]
[1646603987783,5.831,85.776,85.722,23.7344]
[1646603988282,6.38116723,85.775,85.722,23.7344]
[1646603988483,5.831,85.774,85.722,23.7344]
[1646603988683,6.38116723,85.773,85.722,23.7344]
[1646603988883,5.831,85.772,85.722,23.7344]
[1646603989487,5.831,85.776,85.722,23.7344]
[1646603989784,6.38114044,85.775,85.722,23.7344]
[1646603989985,5.831,85.774,85.722,23.7344]
[1646603990188,6.38114044,85.773,85.722,23.7344]
[1646603990386,17.5037,85.77,85.723,10.81459195]
[1646603990586,5.831,85.769,85.723,10.81459195]
[1646603990786,17.5037,85.77,85.723,10.81459195]
[1646603990992,1.57060409,85.754,85.723,10.81459195]
[1646603991586,1.57060409,85.753,85.723,10.81459195]
[1646603991989,1.57060409,85.755,85.723,10.81459195]
[1646603992186,1.57060409,85.76,85.723,10.81459195]
[1646603993689,1.57060409,85.757,85.723,10.81459195]
[1646603993887,1.57060409,85.758,85.723,10.81459195]
[1646603995387,1.57060409,85.753,85.723,10.81459195]
[1646603997491,1.57060409,85.746,85.723,10.81459195]
[1646603997690,1.57060409,85.745,85.723,10.81459195]
[1646603998818,1.57060409,85.746,85.723,10.81459195]
[1646603999821,1.57060409,85.743,85.723,10.81459195]
[1646604001120,1.57060409,85.743,85.723,10.21459195]
[1646604001323,1.57060409,85.742,85.723,10.21459195]
[1646604002322,1.57060409,85.741,85.723,10.21459195]
[1646604002522,62.53605844,85.751,85.723,10.21459195]
[1646604002523,1.57060409,85.74,85.723,10.21459195]
[1646604003323,1.57060409,85.741,85.73,17.4999]
[1646604003923,1.57060409,85.741,85.731,10.21459195]
[1646604004122,1.57060409,85.743,85.732,0.95853457]
[1646604004322,1.57060409,85.744,85.732,0.95853457]
[1646604005123,1.57060409,85.743,85.732,0.95853457]
[1646604005722,1.57060409,85.744,85.732,0.95853457]
[1646604005924,1.57060409,85.745,85.732,0.95853457]
[1646604006123,5.831,85.781,85.732,0.95853457]
[1646604006124,1.57060409,85.746,85.732,0.95853457]
[1646604006524,1.57060409,85.745,85.732,0.95853457]
[1646604006923,1.57060409,85.746,85.733,10.21459195]
[1646604007630,1.57060409,85.747,85.733,10.21459195]
[1646604007823,1.57060409,85.737,85.733,10.21459195]
[1646604008024,2.07366539,85.736,85.733,10.21459195]
[1646604008225,1.57769737,85.735,85.733,10.21459195]
[1646604008525,3.65136276,85.736,85.733,10.21459195]
[1646604008724,1.57769737,85.735,85.733,10.21459195]
[1646604008925,2.07366539,85.736,85.733,10.21459195]
[1646604009823,2.07366539,85.736,85.689,10.21459195]
[1646604010024,1.57662421,85.721,85.689,10.21459195]
[1646604010231,1.57662421,85.717,85.689,10.21459195]
[1646604010424,1.57662421,85.714,85.689,10.21459195]
[1646604010624,1.57662421,85.711,85.689,10.21459195]
[1646604011025,8.57,85.717,85.689,10.21459195]
[1646604011026,1.57662421,85.708,85.689,10.21459195]
[1646604011425,1.57662421,85.707,85.689,10.21459195]
[1646604012227,9.71662421,85.707,85.689,10.21459195]
[1646604012427,5.833,85.706,85.689,10.21459195]
[1646604013026,5.833,85.706,85.654,10.21459195]
[1646604014032,17.5179,85.7,85.654,10.21459195]
[1646604014428,5.835,85.699,85.654,10.21459195]
[1646604014629,7.41162421,85.699,85.654,10.21459195]
[1646604015028,17.5206,85.69,85.654,10.21459195]
[1646604015230,5.836,85.697,85.654,10.21459195]
[1646604016028,7.41162421,85.702,85.654,10.21459195]
[1646604016229,19.09482421,85.7,85.65,17.5182]
[1646604016430,7.41262421,85.699,85.65,17.5182]
[1646604016630,5.836,85.699,85.65,17.5182]
[1646604017129,5.836,85.699,85.66,17.516]
[1646604017531,5.835,85.703,85.66,17.516]
[1646604018330,17.5183,85.7,85.651,23.1808]
[1646604018531,5.835,85.699,85.651,23.1808]
[1646604018932,5.835,85.699,85.65,17.5178]
[1646604019332,5.835,85.699,85.651,10.21459195]
[1646604021534,5.835,85.699,85.652,24.2283]
[1646604022535,5.835,85.699,85.653,10.21459195]
[1646604022735,17.5183,85.7,85.653,10.21459195]
[1646604023640,17.5167,85.71,85.653,10.21459195]
[1646604023842,5.835,85.709,85.66,17.5156]
[1646604024137,5.835,85.715,85.66,17.5156]
[1646604024336,5.835,85.717,85.66,17.5156]
[1646604024939,5.835,85.718,85.66,17.5156]
[1646604025337,7.41162421,85.718,85.66,17.5156]
[1646604025741,7.41162421,85.718,85.661,10.21459195]
[1646604026137,7.41162421,85.718,85.662,24.3977]
[1646604026739,5.835,85.718,85.662,24.3977]
[1646604026940,7.41162421,85.718,85.67,17.5138]
[1646604027138,5.835,85.718,85.67,24.7238]
[1646604027339,5.833,85.722,85.67,24.7238]
[1646604027539,5.833,85.723,85.67,24.7238]
[1646604027739,5.833,85.729,85.67,24.7238]
[1646604027940,61.0068238,85.728,85.67,24.7238]
[1646604028340,5.833,85.727,85.67,17.5138]
[1646604028740,66.8398238,85.728,85.67,17.5138]
[1646604028940,66.8398238,85.728,85.671,10.21459195]
[1646604029340,66.8398238,85.728,85.672,23.9344]
[1646604029941,68.41644801,85.728,85.672,23.9344]
[1646604030140,62.58344801,85.728,85.672,23.9344]
[1646604030742,62.58344801,85.728,85.672,29.7674]
[1646604030942,5.833,85.727,85.672,29.7674]
[1646604031145,1.57662421,85.726,85.672,29.7674]
[1646604031342,5.833,85.725,85.672,29.7674]
[1646604032344,5.833,85.725,85.68,17.5119]
[1646604032944,1.57662421,85.725,85.68,17.5119]
[1646604033246,5.833,85.724,85.68,17.5119]
[1646604034647,1.57662421,85.722,85.68,17.5119]
[1646604034947,5.833,85.721,85.674,5.833]
[1646604035149,7.40962421,85.721,85.674,5.833]
[1646604036047,7.40962421,85.721,85.675,10.21459195]
[1646604036251,1.57662421,85.72,85.675,10.21459195]
[1646604036851,5.833,85.719,85.675,10.21459195]
[1646604037150,1.57662421,85.713,85.68,17.5115]
[1646604037349,1.57662421,85.721,85.681,0.50763883]
[1646604037549,1.57662421,85.729,85.682,5.833]
[1646604037748,1.57662421,85.729,85.683,23.6274]
[1646604037949,1.57662421,85.729,85.69,17.5041]
[1646604038148,1.57662421,85.728,85.69,17.5041]
[1646604038951,1.57662421,85.729,85.691,5.833]
[1646604039149,1.57662421,85.729,85.7,17.5069]
[1646604039448,1.57662421,85.73,85.7,17.5069]
[1646604039649,1.57662421,85.734,85.7,17.5069]
[1646604039848,1.57662421,85.734,85.701,23.3105]
[1646604040048,50.02094538,85.732,85.701,23.3105]
[1646604040751,51.59756959,85.732,85.7,17.5069]
[1646604040955,1.57662421,85.729,85.692,23.3105]
[1646604041152,1.57662421,85.729,85.693,5.833]
[1646604041353,1.57662421,85.728,85.693,5.833]
[1646604041555,1.57662421,85.728,85.691,10.21459195]
[1646604041751,1.57662421,85.716,85.691,10.21459195]
[1646604042051,1.57662421,85.716,85.673,23.3105]
[1646604042253,1.57662421,85.715,85.673,33.52509195]
[1646604042652,1.57662421,85.714,85.673,33.52509195]
[1646604042852,1.57662421,85.715,85.673,33.52509195]
[1646604043252,1.57662421,85.714,85.673,33.52509195]
[1646604043654,1.57662421,85.713,85.673,33.52509195]
[1646604044156,1.57662421,85.713,85.68,17.512]
[1646604044354,1.57662421,85.715,85.681,5.833]
[1646604044558,1.57662421,85.716,85.681,5.833]
[1646604044754,1.57662421,85.715,85.681,5.833]
[1646604045153,1.57662421,85.715,85.69,17.51]
[1646604045355,1.57662421,85.717,85.69,17.51]
[1646604045754,1.57662421,85.721,85.69,17.51]
[1646604045954,1.57662421,85.726,85.69,17.51]
[1646604046154,1.57662421,85.727,85.69,17.51]
[1646604046355,1.57662421,85.727,85.691,5.833]
[1646604046557,1.57662421,85.727,85.7,17.5071]
[1646604046759,1.57662421,85.73,85.7,17.5071]
[1646604046955,1.57662421,85.74,85.701,5.833]
[1646604047179,1.57662421,85.747,85.702,24.964]
[1646604047478,21.00117824,85.78,85.704,0.52915222]
[1646604047479,1.57662421,85.756,85.704,0.52915222]
[1646604047687,1.57662421,85.758,85.71,17.5025]
[1646604047879,1.57662421,85.77,85.711,5.831]
[1646604048279,5.831,85.769,85.71,20.27]
[1646604048481,1.57662421,85.771,85.711,5.831]
[1646604048681,1.57662421,85.772,85.711,5.831]
[1646604048881,1.57662421,85.773,85.711,5.831]
[1646604049080,1.57662421,85.774,85.72,17.4994]
[1646604049282,1.57662421,85.774,85.721,5.831]
[1646604049683,1.57662421,85.775,85.721,5.831]
[1646604049882,1.57662421,85.774,85.72,13.94]
[1646604050182,1.57662421,85.765,85.703,22.5328]
[1646604050482,1.57662421,85.763,85.703,22.5328]
[1646604050681,1.57662421,85.763,85.711,10.21459195]
[1646604050880,1.57662421,85.768,85.711,10.21459195]
[1646604051082,1.57662421,85.768,85.72,17.5039]
[1646604051682,1.57662421,85.767,85.721,10.21459195]
[1646604052182,1.57662421,85.768,85.721,10.21459195]
[1646604052382,1.57662421,85.767,85.73,17.5016]
[1646604052884,1.57662421,85.768,85.721,10.21459195]
[1646604053182,1.57662421,85.767,85.721,10.21459195]
[1646604053382,1.57662421,85.766,85.722,5.831]
[1646604053583,5.831,85.765,85.721,10.21459195]
[1646604053985,7.40762421,85.765,85.721,10.21459195]
[1646604054385,1.57662421,85.764,85.722,5.831]
[1646604054587,1.57662421,85.763,85.722,5.831]
[1646604054786,1.57662421,85.763,85.723,10.21459195]
[1646604054984,1.57662421,85.763,85.724,5.831]
[1646604055185,1.57662421,85.761,85.723,10.21459195]
[1646604055384,51.39499077,85.778,85.723,10.21459195]
[1646604055385,1.57662421,85.762,85.73,17.5019]
[1646604056887,1.57662421,85.761,85.73,17.5019]
[1646604057587,1.57662421,85.76,85.73,17.5019]
[1646604057788,1.57662421,85.762,85.73,17.5019]
[1646604058188,1.57662421,85.762,85.731,10.21459195]
[1646604060893,1.57662421,85.762,85.74,17.4996]
[1646604061094,1.57662421,85.779,85.741,0.57823913]
[1646604061292,1.57662421,85.782,85.741,23.23553913]
[1646604061493,1.57662421,85.791,85.742,5.83]
[1646604061691,1.57662421,85.795,85.742,5.83]
[1646604061893,1.57662421,85.797,85.742,5.83]
[1646604062296,1.57662421,85.797,85.75,17.4896]
[1646604062494,1.57662421,85.797,85.751,5.829]
[1646604062693,1.57662421,85.796,85.751,5.829]
[1646604063098,1.57662421,85.8,85.751,5.829]
[1646604063295,1.57662421,85.799,85.751,5.829]
[1646604063495,1.57662421,85.8,85.751,5.829]
[1646604063894,1.57662421,85.799,85.751,5.829]
[1646604064097,1.57662421,85.799,85.76,17.4928]
[1646604064295,1.57662421,85.8,85.76,17.4928]
[1646604064496,1.57662421,85.803,85.76,17.4928]
[1646604065097,1.57662421,85.802,85.76,17.4928]
[1646604065296,1.57662421,85.801,85.76,17.4928]
[1646604065497,1.57662421,85.802,85.76,17.4928]
[1646604066099,1.57662421,85.801,85.761,5.828]
[1646604066300,1.57662421,85.802,85.761,5.828]
[1646604066999,1.57662421,85.802,85.77,17.4902]
[1646604067199,1.57662421,85.803,85.77,17.4902]
[1646604067599,1.57662421,85.809,85.77,17.4902]
[1646604068401,5.828,85.823,85.77,17.4902]
[1646604068402,1.57662421,85.811,85.77,17.4902]
[1646604068602,1.57662421,85.814,85.77,17.4902]
[1646604068801,1.57662421,85.813,85.77,17.4902]
[1646604069002,1.57662421,85.812,85.77,17.4902]
[1646604069205,1.57662421,85.814,85.77,17.4902]
[1646604069403,60.53309178,85.815,85.77,17.4902]
[1646604070605,1.57662421,85.818,85.771,10.21459195]
[1646604071406,1.57662421,85.819,85.771,10.21459195]
[1646604071607,5.827,85.835,85.771,10.21459195]
[1646604071608,48.44021068,85.814,85.771,10.21459195]
[1646604072105,1.57662421,85.812,85.771,10.21459195]
[1646604072906,48.44021068,85.814,85.771,10.21459195]
[1646604072907,7.40462421,85.811,85.771,10.21459195]
[1646604073430,1.57662421,85.81,85.771,10.21459195]
[1646604073606,5.828,85.809,85.771,10.21459195]
[1646604074008,7.40462421,85.809,85.771,10.21459195]
[1646604074209,1.57662421,85.809,85.771,10.21459195]
[1646604074407,1.57662421,85.809,85.764,10.21459195]
[1646604074606,5.828,85.808,85.764,10.21459195]
[1646604074808,1.57662421,85.793,85.764,10.21459195]
[1646604075207,1.57662421,85.792,85.764,10.21459195]
[1646604075408,1.57662421,85.788,85.764,10.21459195]
[1646604075609,64.45529575,85.787,85.764,10.21459195]
[1646604075809,1.57662421,85.785,85.764,10.21459195]
[1646604076018,1.57662421,85.784,85.764,10.21459195]
[1646604076210,64.45529575,85.787,85.764,10.21459195]
[1646604076211,1.57662421,85.778,85.764,10.21459195]
[1646604076411,1.57662421,85.771,85.764,10.21459195]
[1646604076710,52.70526958,85.768,85.71,31.4435]
[1646604077312,1.57662421,85.767,85.71,31.4435]
[1646604077515,54.28189379,85.768,85.71,31.4435]
[1646604078010,54.28189379,85.768,85.71,13.94]
[1646604078211,1.57662421,85.764,85.705,48.078]
[1646604078412,1.57662421,85.761,85.705,48.078]
[1646604078612,61.15526958,85.768,85.705,48.078]
[1646604078613,5.832,85.76,85.705,48.078]
[1646604078912,5.832,85.76,85.67,39.27980086]
[1646604078913,17.5125,85.73,85.67,39.27980086]
[1646604079114,1.57662421,85.728,85.67,56.79040086]
[1646604079310,62.38270044,85.727,85.671,25.33980086]
[1646604079714,5.833,85.726,85.671,25.33980086]
[1646604080414,5.833,85.726,85.68,17.5108]
[1646604082718,62.38270044,85.727,85.68,17.5108]
[1646604083318,62.38270044,85.727,85.66,43.45388225]
[1646604083529,5.833,85.726,85.65,13.94]
[1646604083725,1.57662421,85.725,85.64,13.94]
[1646604083922,1.57662421,85.721,85.64,13.94]
[1646604084122,1.57662421,85.716,85.64,13.94]
[1646604084323,60.89415543,85.714,85.639,47.4169]
[1646604084523,5.835,85.713,85.639,47.4169]
[1646604084725,49.18338935,85.699,85.639,47.4169]
[1646604084922,5.836,85.698,85.639,47.4169]
[1646604086223,5.836,85.711,85.639,47.4169]
[1646604086424,5.836,85.719,85.64,5.836]
[1646604086824,5.836,85.719,85.64,23.3543]
[1646604087026,17.5176,85.71,85.64,23.3543]
[1646604087325,5.836,85.709,85.64,23.3543]
[1646604088639,5.836,85.717,85.64,23.3543]
[1646604089141,5.836,85.717,85.641,2.83613526]
[1646604089340,5.836,85.717,85.642,5.835]
[1646604089538,5.836,85.717,85.65,17.5149]
[1646604093044,5.836,85.717,85.651,5.835]
[1646604094142,5.835,85.719,85.66,17.5145]
[1646604094342,5.835,85.739,85.661,5.835]
[1646604094541,5.835,85.739,85.651,24.4012]
[1646604094942,60.34376669,85.738,85.651,24.4012]
[1646604095143,17.5133,85.73,85.67,17.5113]
[1646604095443,5.833,85.729,85.67,17.5113]
[1646604096344,5.833,85.737,85.67,17.5113]
[1646604097246,5.833,85.737,85.68,17.5099]
[1646604098247,5.833,85.737,85.681,5.833]
[1646604099346,5.833,85.737,85.68,17.5099]
[1646604099846,5.833,85.737,85.681,5.833]
[1646604100648,5.833,85.737,85.69,17.5087]
[1646604100854,5.833,85.747,85.69,31.4487]
[1646604101048,5.833,85.761,85.691,5.833]
[1646604101251,5.833,85.761,85.691,14.533]
[1646604101449,1.57662421,85.771,85.691,14.533]
[1646604101649,58.37829361,85.769,85.71,17.5023]
[1646604101850,5.831,85.768,85.711,5.831]
[1646604102450,7.40762421,85.768,85.71,17.5023]
[1646604103246,1.57662421,85.763,85.71,17.5023]
[1646604103451,5.831,85.762,85.71,17.5023]
[1646604104052,7.40762421,85.762,85.71,17.5023]
[1646604104250,5.831,85.762,85.71,17.5023]
[1646604104751,7.40762421,85.762,85.71,17.5023]
[1646604105351,52.54216527,85.756,85.71,17.5023]
[1646604105551,7.40862421,85.755,85.71,17.5023]
[1646604105753,5.832,85.755,85.71,17.5023]
[1646604106255,1.57662421,85.75,85.711,5.832]
[1646604106452,1.57662421,85.753,85.711,5.832]
[1646604106853,1.57662421,85.755,85.711,5.832]
[1646604107055,1.57662421,85.755,85.72,17.5027]
[1646604107254,52.54216527,85.756,85.72,17.5027]
[1646604107657,1.57662421,85.756,85.72,17.5027]
[1646604108059,1.57662421,85.759,85.72,17.5027]
[1646604108256,1.57662421,85.759,85.72,31.4427]
[1646604108458,1.57662421,85.76,85.72,31.4427]
[1646604109054,1.57662421,85.76,85.721,5.831]
[1646604109255,1.57662421,85.76,85.73,17.5007]
[1646604109455,1.57662421,85.762,85.73,26.7307]
[1646604109855,63.68479233,85.764,85.73,26.7307]
[1646604110057,63.68479233,85.764,85.73,9.23]
[1646604110256,63.68479233,85.764,85.713,23.3869]
[1646604110257,17.5066,85.76,85.713,23.3869]
[1646604110461,5.831,85.759,85.713,23.3869]
[1646604110655,1.57662421,85.756,85.713,23.3869]
[1646604110856,1.57662421,85.755,85.713,23.3869]
[1646604111962,1.57662421,85.754,85.713,23.3869]
[1646604112359,1.57662421,85.755,85.713,23.3869]
[1646604112559,1.57662421,85.754,85.713,23.3869]
[1646604113458,1.57662421,85.753,85.713,23.3869]
[1646604115261,1.57662421,85.753,85.72,17.5034]
[1646604115459,1.57662421,85.756,85.72,17.5034]
[1646604116264,1.57662421,85.755,85.72,17.5034]
[1646604117063,1.57662421,85.756,85.72,17.5034]
[1646604117664,1.57662421,85.755,85.72,17.5034]
[1646604117964,1.57662421,85.759,85.72,17.5034]
[1646604118164,1.57662421,85.757,85.72,17.5034]
[1646604119268,1.57662421,85.76,85.72,17.5034]
[1646604120273,1.57662421,85.761,85.72,17.5034]
[1646604121675,1.57662421,85.758,85.72,17.5034]
[1646604123292,1.57662421,85.754,85.72,17.5034]
[1646604123895,1.57662421,85.755,85.72,17.5034]
[1646604124492,55.4633089,85.755,85.72,17.5034]
[1646604125493,1.57662421,85.753,85.72,17.5034]
[1646604125695,1.57662421,85.752,85.72,17.5034]
[1646604126296,1.57662421,85.748,85.72,17.5034]
[1646604126497,1.57662421,85.747,85.72,17.5034]
[1646604127597,1.57662421,85.748,85.72,17.5034]
[1646604129098,1.57662421,85.753,85.72,17.5034]
[1646604129296,1.57662421,85.747,85.72,17.5034]
[1646604129696,1.57662421,85.741,85.72,17.5034]
[1646604130901,1.57662421,85.74,85.72,17.5034]
[1646604133903,1.57662421,85.741,85.72,17.5034]
[1646604134106,1.57662421,85.74,85.72,17.5034]
[1646604134404,1.57662421,85.74,85.703,5.831]
[1646604134606,1.57662421,85.739,85.7,13.94]
[1646604134803,1.57662421,85.734,85.686,24.019]
[1646604135001,1.57662421,85.728,85.686,24.019]
[1646604135201,1.57662421,85.729,85.686,24.019]
[1646604135500,1.57662421,85.729,85.68,13.94]
[1646604135716,63.35464207,85.734,85.64,251.2614]
[1646604135717,1.57662421,85.719,85.67,13.94]
[1646604135902,1.57662421,85.719,85.665,23.2094]
[1646604136102,1.57662421,85.718,85.665,23.2094]
[1646604136304,1.57662421,85.712,85.665,23.2094]
[1646604136502,1.57662421,85.711,85.67,17.5127]
[1646604136703,1.57662421,85.71,85.67,17.5127]
[1646604136908,1.57662421,85.711,85.67,17.5127]
[1646604137103,1.57662421,85.709,85.67,17.5127]
[1646604137303,1.57662421,85.716,85.67,17.5127]
[1646604137706,1.57662421,85.716,85.67,31.4527]
[1646604137906,1.57662421,85.717,85.67,31.4527]
[1646604138707,1.57662421,85.719,85.67,31.4527]
[1646604139206,1.57662421,85.719,85.67,38.9527]
[1646604139416,1.57662421,85.728,85.671,24.02064749]
[1646604139607,1.57662421,85.733,85.68,17.5048]
[1646604139806,1.57662421,85.733,85.68,31.4448]
[1646604140007,1.57662421,85.732,85.68,31.4448]
[1646604140206,1.57662421,85.732,85.681,24.5817]
[1646604140607,1.57662421,85.734,85.681,24.5817]
[1646604141206,1.57662421,85.734,85.69,17.5053]
[1646604141405,55.28026572,85.75,85.69,17.5053]
[1646604141406,1.57662421,85.735,85.691,24.5817]
[1646604142207,1.57662421,85.734,85.691,24.5817]
[1646604142609,1.57662421,85.737,85.691,24.5817]
[1646604142809,1.57662421,85.736,85.691,31.6717]
[1646604143210,1.57662421,85.736,85.7,17.5064]
[1646604143408,1.57662421,85.737,85.7,17.5064]
[1646604143611,1.57662421,85.736,85.7,17.5064]
[1646604145113,1.57662421,85.737,85.7,17.5064]
[1646604145311,1.57662421,85.738,85.7,17.5064]
[1646604145712,1.57662421,85.737,85.7,17.5064]
[1646604146814,1.57662421,85.736,85.7,17.5064]
[1646604147016,1.57662421,85.738,85.7,17.5064]
[1646604147216,1.57662421,85.738,85.7,23.8064]
[1646604147416,1.57662421,85.739,85.7,23.8064]
[1646604148517,1.57662421,85.738,85.7,23.8064]
[1646604149418,1.57662421,85.739,85.7,23.8064]
[1646604149620,1.57662421,85.739,85.701,22.8948]
[1646604149819,1.57662421,85.739,85.71,17.5038]
[1646604150018,1.57662421,85.74,85.71,17.5038]
[1646604150422,1.57662421,85.75,85.71,17.5038]
[1646604150622,1.57662421,85.754,85.71,31.4438]
[1646604150923,1.57662421,85.754,85.72,17.5019]
[1646604151121,2.421e-05,85.754,85.72,24.7019]
[1646604151321,12.18572167,85.838,85.72,24.7019]
[1646604151322,1.57901437,85.768,85.73,13.94]
[1646604151523,3.16058805,85.81,85.73,13.94]
[1646604151724,3.16058805,85.818,85.731,28.79484648]
[1646604151921,3.16058805,85.821,85.733,0.55542234]
[1646604152125,45.7722014,85.817,85.733,0.55542234]
[1646604152327,5.829,85.816,85.75,17.4873]
[1646604152523,5.829,85.816,85.76,13.94]
[1646604153528,5.829,85.816,85.77,17.4885]
[1646604153727,5.829,85.816,85.77,31.4285]
[1646604154733,5.827,85.831,85.77,37.3485]
[1646604154929,6.37285663,85.83,85.78,17.4868]
[1646604155128,5.827,85.836,85.78,17.4868]
[1646604155328,5.825,85.839,85.78,17.4868]
[1646604155528,61.08363755,85.838,85.78,17.4868]
[1646604155727,5.825,85.837,85.78,17.4868]
[1646604157552,6.37311478,85.836,85.78,17.4868]
[1646604157753,5.825,85.837,85.78,17.4868]
[1646604160258,61.08363755,85.838,85.78,17.4868]
[1646604163266,5.825,85.837,85.78,17.4868]
[1646604164370,5.825,85.837,85.79,17.4879]
[1646604164568,5.825,85.837,85.79,26.5979]
[1646604170384,61.08363755,85.838,85.79,26.5979]
[1646604173383,61.08363755,85.838,85.79,17.4879]
[1646604174184,5.825,85.837,85.79,17.4879]
[1646604176304,6.37262836,85.836,85.79,17.4879]
[1646604176504,5.825,85.835,85.79,17.4879]
[1646604176905,5.825,85.837,85.79,17.4879]
[1646604177205,6.37259174,85.836,85.79,17.4879]
[1646604177405,5.825,85.835,85.79,17.4879]
[1646604178005,5.825,85.837,85.79,17.4879]
[1646604178405,6.37262675,85.836,85.79,17.4879]
[1646604178606,5.825,85.835,85.79,17.4879]
[1646604179006,5.825,85.837,85.79,17.4879]
[1646604179207,62.62818865,85.824,85.79,17.4879]
[1646604179409,6.37263485,85.823,85.79,17.4879]
[1646604180008,3.16058805,85.824,85.79,17.4879]
[1646604180815,53.41074108,85.824,85.79,17.4879]
[1646604181110,6.37263485,85.823,85.79,17.4879]
[1646604181510,3.16058805,85.827,85.79,17.4879]
[1646604182310,57.06836997,85.826,85.79,17.4879]
[1646604182511,6.37263485,85.825,85.79,17.4879]
[1646604183111,6.37263485,85.825,85.79,31.4279]
[1646604186917,3.16058805,85.827,85.79,31.4279]
[1646604187116,6.37263485,85.824,85.79,31.4279]
[1646604187317,3.16058805,85.829,85.79,31.4279]
[1646604187818,51.91997191,85.828,85.79,31.4279]
[1646604188017,58.29260676,85.828,85.79,31.4279]
[1646604188216,6.37263485,85.827,85.79,31.4279]
[1646604190820,3.16058805,85.833,85.79,31.4279]
[1646604191022,6.37263485,85.826,85.79,31.4279]
[1646604191220,3.16058805,85.833,85.79,31.4279]
[1646604191421,3.16058805,85.834,85.79,31.4279]
[1646604191620,3.16058805,85.834,85.791,24.08]
[1646604191820,3.16058805,85.833,85.8,17.4846]
[1646604192020,3.16058805,85.833,85.8,25.0746]
[1646604192820,3.16058805,85.834,85.8,25.0746]
[1646604193222,6.37182755,85.833,85.8,25.0746]
[1646604193421,3.16058805,85.834,85.8,25.0746]
[1646604194323,3.16058805,85.833,85.8,25.0746]
[1646604194926,3.16058805,85.834,85.8,25.0746]
[1646604196327,3.16058805,85.836,85.8,25.0746]
[1646604196529,6.37182755,85.833,85.8,25.0746]
[1646604196729,3.16058805,85.836,85.8,25.0746]
[1646604196931,6.37182755,85.832,85.8,25.0746]
[1646604197130,3.16058805,85.836,85.8,25.0746]
[1646604197332,5.825,85.859,85.801,110.0]
[1646604197533,4.75338019,85.873,85.81,13.94]
[1646604197735,4.75338019,85.873,85.821,0.56772664]
[1646604197932,5.825,85.876,85.821,0.56772664]
[1646604197933,4.75338019,85.895,85.83,13.94]
[1646604198132,5.824,85.9,85.83,13.94]
[1646604198335,52.79877152,85.904,85.831,0.58670921]
[1646604198536,5.822,85.903,85.831,31.42901544]
[1646604198737,5.822,85.903,85.84,17.471]
[1646604198937,5.822,85.903,85.85,13.94]
[1646604199134,52.79877152,85.904,85.85,13.94]
[1646604199634,52.79877152,85.904,85.851,23.5575]
[1646604199836,52.79877152,85.904,85.86,17.4709]
[1646604200034,52.79877152,85.904,85.86,31.4109]
[1646604200235,27.90585862,85.934,85.861,0.5040397]
[1646604200433,5.821,85.911,85.861,0.5040397]
[1646604200634,5.821,85.911,85.86,13.94]
[1646604201438,5.821,85.911,85.87,17.4695]
[1646604201634,5.821,85.911,85.87,31.4095]
[1646604202935,177.77134383,85.912,85.87,31.4095]
[1646604203546,5.821,85.911,85.87,31.4095]
[1646604206841,5.821,85.911,85.87,0.0095]
[1646604207044,177.77134383,85.912,85.87,0.0095]
[1646604207642,177.77134383,85.912,85.871,5.75378614]
[1646604207842,177.77134383,85.912,85.88,17.4707]
[1646604208461,64.37134383,85.912,85.88,17.4707]
[1646604210765,5.82,85.932,85.89,17.4653]
[1646604211166,23.4995,85.933,85.89,17.4653]
[1646604211566,5.819,85.943,85.89,17.4653]
[1646604211867,63.16819839,85.942,85.89,17.4653]
[1646604212065,5.819,85.941,85.881,0.00378614]
[1646604213166,17.4693,85.94,85.881,0.00378614]
[1646604213366,5.82,85.939,85.881,0.00378614]